fUST/lending_fUST_20260526
["ID","MTS","AMOUNT","RATE_DAILY","PERIOD"]
[423002819,1779738648000,-10155.626411,9.998e-05,2]
[423002824,1779738648000,-2212.148756,9.998e-05,2]
[423002817,1779738648000,-3491.87547,9.998e-05,2]
[423002807,1779738648000,-184.94901404,9.98e-05,7]
[423002789,1779738648000,-500.0,9.863e-05,2]
[423002786,1779738648000,-5605.86,9.863e-05,2]
[423002790,1779738648000,-202.13583484,9.864e-05,7]
[423002791,1779738648000,-166.61443389,9.864e-05,4]
[423002794,1779738648000,-2331.357378,9.919e-05,2]
[423002796,1779738648000,-414.587996,9.958e-05,2]
[423002797,1779738648000,-497.988373,9.958e-05,2]
[423002792,1779738648000,-15495.388938,9.9e-05,2]
[423002798,1779738648000,-1181.41024,9.958e-05,2]
[423002803,1779738648000,-338.48833572,9.965e-05,7]
[423002804,1779738648000,-218.59022767,9.98e-05,7]
[423002800,1779738648000,-195.59877946,9.965e-05,7]
[423002801,1779738648000,-414.18595473,9.965e-05,7]
[423002805,1779738648000,-172.13580115,9.98e-05,7]
[423002795,1779738648000,-198.973844,9.958e-05,2]
[423002799,1779738648000,-324.15622876,9.965e-05,7]
[423002802,1779738648000,-162.28478143,9.965e-05,7]
[423002868,1779738649000,-322.836796,0.00010098,2]
[423002869,1779738649000,-485.673592,0.00010098,2]
[423002866,1779738649000,-791.0,0.00010085,2]
[423002863,1779738649000,-4528.42791875,0.00010081,5]
[423002865,1779738649000,-1000.0,0.00010085,2]
[423002860,1779738649000,-500.0,0.00010034,2]
[423002864,1779738649000,-8493.82317279,0.00010081,5]
[423002867,1779738649000,-160.0,0.00010098,2]
[423002861,1779738649000,-6192.3483445,0.0001007,2]
[423002872,1779738649000,-3235.1669,0.00010136,2]
[423002858,1779738649000,-151.0,0.0001,2]
[423002862,1779738649000,-11856.75860503,0.0001007,2]
[423002871,1779738649000,-3580.248148,0.00010132,2]
[423002891,1779738649000,-599.27,0.00010136,2]
[423002870,1779738649000,-10219.72405856,0.000101,2]
[423002878,1779738649000,-548.95,0.00010136,2]
[423002874,1779738649000,-500.0,0.00010136,2]
[423002879,1779738649000,-500.0,0.00010136,2]
[423002876,1779738649000,-500.0,0.00010136,2]
[423002875,1779738649000,-990.81,0.00010136,2]
[423002877,1779738649000,-612.82,0.00010136,2]
[423002880,1779738649000,-500.0,0.00010136,2]
[423002889,1779738649000,-565.16,0.00010136,2]
[423002890,1779738649000,-500.0,0.00010136,2]
[423002893,1779738649000,-1160.51,0.00010136,2]
[423002883,1779738649000,-500.0,0.00010136,2]
[423002859,1779738649000,-456.7008752,0.00010028,2]
[423002873,1779738649000,-500.0,0.00010136,2]
[423002854,1779738649000,-151.0,0.0001,2]
[423002835,1779738649000,-10219.72405856,0.0001,2]
[423002852,1779738649000,-151.0,0.0001,2]
[423002827,1779738649000,-14333.10595732,0.0001,2]
[423002828,1779738649000,-3732.6317716,0.0001,10]
[423002830,1779738649000,-677.84382228,0.0001,2]
[423002829,1779738649000,-1000.0,0.0001,2]
[423002842,1779738649000,-151.0,0.0001,2]
[423002837,1779738649000,-342.01950002,0.0001,2]
[423002836,1779738649000,-2141.09179327,0.0001,2]
[423002831,1779738649000,-423.0,0.0001,5]
[423002838,1779738649000,-160.0,0.0001,2]
[423002892,1779738649000,-1213.9,0.00010136,2]
[423002833,1779738649000,-3538.88469499,0.0001,2]
[423002843,1779738649000,-151.0,0.0001,2]
[423002840,1779738649000,-151.0,0.0001,2]
[423002841,1779738649000,-151.0,0.0001,2]
[423002834,1779738649000,-350.70347328,0.0001,2]
[423002839,1779738649000,-151.0,0.0001,2]
[423002844,1779738649000,-151.0,0.0001,2]
[423002846,1779738649000,-151.0,0.0001,2]
[423002851,1779738649000,-151.0,0.0001,2]
[423002848,1779738649000,-151.0,0.0001,2]
[423002845,1779738649000,-151.0,0.0001,2]
[423002849,1779738649000,-151.0,0.0001,2]
[423002847,1779738649000,-151.0,0.0001,2]
[423002850,1779738649000,-151.0,0.0001,2]
[423002853,1779738649000,-151.0,0.0001,2]
[423002856,1779738649000,-151.0,0.0001,2]
[423002857,1779738649000,-151.0,0.0001,2]
[423002855,1779738649000,-151.0,0.0001,2]
[423002881,1779738649000,-500.0,0.00010136,2]
[423002832,1779738649000,-35710.23910189,0.0001,2]
[423002884,1779738649000,-1770.14,0.00010136,2]
[423002929,1779738649000,-500.0,0.00010136,2]
[423002921,1779738649000,-589.81,0.00010136,2]
[423002928,1779738649000,-500.0,0.00010136,2]
[423002922,1779738649000,-528.64,0.00010136,2]
[423002919,1779738649000,-500.0,0.00010136,2]
[423002923,1779738649000,-775.55,0.00010136,2]
[423002920,1779738649000,-1201.0,0.00010136,2]
[423002924,1779738649000,-690.04,0.00010136,2]
[423002930,1779738649000,-786.57,0.00010136,2]
[423002934,1779738649000,-462.46,0.00010136,2]
[423002932,1779738649000,-1517.74,0.00010136,2]
[423002935,1779738649000,-500.0,0.00010136,2]
[423002931,1779738649000,-589.32,0.00010136,2]
[423002941,1779738649000,-616.44,0.00010136,2]
[423002940,1779738649000,-937.36,0.00010136,2]
[423002938,1779738649000,-500.0,0.00010136,2]
[423002936,1779738649000,-500.0,0.00010136,2]
[423002937,1779738649000,-500.0,0.00010136,2]
[423002939,1779738649000,-562.14,0.00010136,2]
[423002933,1779738649000,-500.0,0.00010136,2]
[423002944,1779738649000,-798.9,0.00010136,2]
[423002945,1779738649000,-3822.85,0.00010136,2]
[423002948,1779738649000,-500.0,0.00010136,2]
[423002943,1779738649000,-1343.7,0.00010136,2]
[423002947,1779738649000,-500.0,0.00010136,2]
[423002946,1779738649000,-5943.22,0.00010136,2]
[423002882,1779738649000,-500.0,0.00010136,2]
[423002917,1779738649000,-500.0,0.00010136,2]
[423002927,1779738649000,-500.0,0.00010136,2]
[423002942,1779738649000,-283.08953976,0.00010136,2]
[423002925,1779738649000,-500.0,0.00010136,2]
[423002888,1779738649000,-500.0,0.00010136,2]
[423002886,1779738649000,-500.0,0.00010136,2]
[423002885,1779738649000,-500.0,0.00010136,2]
[423002895,1779738649000,-500.0,0.00010136,2]
[423002905,1779738649000,-500.0,0.00010136,2]
[423002907,1779738649000,-2189.35,0.00010136,2]
[423002906,1779738649000,-500.0,0.00010136,2]
[423002898,1779738649000,-500.0,0.00010136,2]
[423002901,1779738649000,-920.55,0.00010136,2]
[423002894,1779738649000,-500.0,0.00010136,2]
[423002897,1779738649000,-529.77,0.00010136,2]
[423002887,1779738649000,-1099.15,0.00010136,2]
[423002903,1779738649000,-500.0,0.00010136,2]
[423002896,1779738649000,-500.0,0.00010136,2]
[423002904,1779738649000,-500.0,0.00010136,2]
[423002918,1779738649000,-722.54,0.00010136,2]
[423002916,1779738649000,-500.0,0.00010136,2]
[423002914,1779738649000,-500.0,0.00010136,2]
[423002912,1779738649000,-511.58,0.00010136,2]
[423002910,1779738649000,-500.0,0.00010136,2]
[423002899,1779738649000,-812.19,0.00010136,2]
[423002913,1779738649000,-1705.83,0.00010136,2]
[423002911,1779738649000,-500.0,0.00010136,2]
[423002908,1779738649000,-500.0,0.00010136,2]
[423002909,1779738649000,-500.0,0.00010136,2]
[423002900,1779738649000,-1602.48,0.00010136,2]
[423002902,1779738649000,-1160.17,0.00010136,2]
[423002915,1779738649000,-500.0,0.00010136,2]
[423002926,1779738649000,-500.0,0.00010136,2]
[423002949,1779738650000,-869.82,0.00010136,2]
[423002955,1779738650000,-1933.10729941,0.00010136,2]
[423002954,1779738650000,-500.0,0.00010136,2]
[423002950,1779738650000,-1471.7,0.00010136,2]
[423002951,1779738650000,-500.0,0.00010136,2]
[423002952,1779738650000,-500.0,0.00010136,2]
[423002953,1779738650000,-1541.23,0.00010136,2]
[423002973,1779739596000,835.91665979,5.005e-05,2]
[423002974,1779739605000,2716.83,5e-05,2]
[423002976,1779739658000,-77.11094117,5.12e-05,2]
[423002975,1779739658000,-5000.0,5.07e-05,2]
[423002979,1779739803000,160.566907,4.297e-05,2]
[423003051,1779739832000,-654.12947058,5.378e-05,2]
[423003055,1779739832000,-654.12947058,5.378e-05,2]
[423003061,1779739832000,-654.12947058,5.378e-05,2]
[423003043,1779739832000,-654.12947058,5.378e-05,2]
[423003057,1779739832000,-654.12947058,5.378e-05,2]
[423003053,1779739832000,-654.12947058,5.378e-05,2]
[423003041,1779739832000,-654.12947058,5.378e-05,2]
[423003049,1779739832000,-654.12947058,5.378e-05,2]
[423003059,1779739832000,-654.12947058,5.378e-05,2]
[423003045,1779739832000,-654.12947058,5.378e-05,2]
[423003039,1779739832000,-447.75852446,5.331e-05,2]
[423003033,1779739832000,-500.0,5.331e-05,2]
[423003027,1779739832000,-360.7789655,5.12e-05,2]
[423003025,1779739832000,-5000.0,5.069e-05,2]
[423003021,1779739832000,-500.0,5.067e-05,2]
[423003023,1779739832000,-500.0,5.067e-05,2]
[423003035,1779739832000,-500.0,5.331e-05,2]
[423003019,1779739832000,-284.55512148,5.067e-05,2]
[423003011,1779739832000,-200.0,5.055e-05,2]
[423003017,1779739832000,-1200.0,5.067e-05,2]
[423003015,1779739832000,-300.0,5.067e-05,2]
[423003013,1779739832000,-300.0,5.067e-05,2]
[423003037,1779739832000,-500.0,5.331e-05,2]
[423003063,1779739832000,-654.12947058,5.378e-05,2]
[423003047,1779739832000,-654.12947058,5.378e-05,2]
[423003073,1779739832000,-331.0,5.574e-05,2]
[423003065,1779739832000,-1817.62306051,5.505e-05,2]
[423003099,1779739832000,-2781.77112203,5.974e-05,2]
[423003095,1779739832000,-300.0,5.69e-05,2]
[423003097,1779739832000,-6966.77496666,5.774e-05,2]
[423003094,1779739832000,-300.0,5.69e-05,2]
[423003096,1779739832000,-600.0,5.69e-05,2]
[423003093,1779739832000,-300.0,5.69e-05,2]
[423003092,1779739832000,-300.0,5.69e-05,2]
[423003090,1779739832000,-300.0,5.69e-05,2]
[423003088,1779739832000,-300.0,5.69e-05,2]
[423003091,1779739832000,-300.0,5.69e-05,2]
[423003089,1779739832000,-300.0,5.69e-05,2]
[423003098,1779739832000,-8034.91121612,5.874e-05,2]
[423003086,1779739832000,-300.0,5.69e-05,2]
[423003067,1779739832000,-4392.19901358,5.505e-05,2]
[423003087,1779739832000,-300.0,5.69e-05,2]
[423003071,1779739832000,-5110.7057321,5.574e-05,2]
[423003078,1779739832000,-300.0,5.69e-05,2]
[423003080,1779739832000,-300.0,5.69e-05,2]
[423003069,1779739832000,-339.07894187,5.505e-05,2]
[423003077,1779739832000,-6572.80847406,5.674e-05,2]
[423003082,1779739832000,-300.0,5.69e-05,2]
[423003085,1779739832000,-300.0,5.69e-05,2]
[423003084,1779739832000,-300.0,5.69e-05,2]
[423003075,1779739832000,-607.62607291,5.576e-05,2]
[423003115,1779739838000,-500.0,5.067e-05,2]
[423003106,1779739838000,-500.0,5.067e-05,2]
[423003107,1779739838000,-434.18147971,5.067e-05,2]
[423003108,1779739838000,-65.81852029,5.067e-05,2]
[423003112,1779739838000,-500.0,5.067e-05,2]
[423003109,1779739838000,-531.17250676,5.067e-05,2]
[423003114,1779739838000,-500.0,5.067e-05,2]
[423003116,1779739838000,-318.94504078,5.067e-05,2]
[423003110,1779739838000,-500.0,5.067e-05,2]
[423003117,1779739838000,-181.05495922,5.067e-05,2]
[423003129,1779739838000,-720.0,6.259e-05,2]
[423003118,1779739838000,-500.0,5.067e-05,2]
[423003119,1779739838000,-500.0,5.067e-05,2]
[423003121,1779739838000,-654.12947058,5.378e-05,2]
[423003123,1779739838000,-654.12947058,5.378e-05,2]
[423003124,1779739838000,-654.12947058,5.378e-05,2]
[423003122,1779739838000,-654.12947058,5.378e-05,2]
[423003126,1779739838000,-654.12947058,5.378e-05,2]
[423003127,1779739838000,-6715.24283615,5.974e-05,2]
[423003125,1779739838000,-654.12947058,5.378e-05,2]
[423003128,1779739838000,-841.57841624,6.152e-05,2]
[423003120,1779739838000,-654.12947058,5.378e-05,2]
[423003141,1779739839000,-841855.44027231,8.119e-05,2]
[423003131,1779739839000,-876.17320395,6.729e-05,2]
[423003130,1779739839000,-250.0,6.304e-05,2]
[423003142,1779739839000,-2423.77,8.119e-05,2]
[423003134,1779739839000,-9541.35091973,7.277e-05,2]
[423003132,1779739839000,-864.0,6.884e-05,2]
[423003138,1779739839000,-160.0,7.963e-05,2]
[423003140,1779739839000,-160.0,7.963e-05,2]
[423003139,1779739839000,-160.0,7.963e-05,2]
[423003133,1779739839000,-516.71008988,7.12e-05,2]
[423003137,1779739839000,-1144.72033499,7.881e-05,2]
[423003136,1779739839000,-1000.0,7.573e-05,2]
[423003135,1779739839000,-1003.53050249,7.305e-05,2]
[423003152,1779739841000,-2604.88942571,8.119e-05,2]
[423003177,1779739844000,-1930.04165381,8.219e-05,2]
[423003196,1779739847000,-238.16375513,8.219e-05,2]
[423003195,1779739847000,-500.0,8.219e-05,2]
[423003194,1779739847000,-165.72326145,8.219e-05,2]
[423003192,1779739847000,-262.59124619,8.219e-05,2]
[423003193,1779739847000,-334.27673855,8.219e-05,2]
[423003191,1779739847000,-5000.0,8.038e-05,2]
[423003199,1779740056000,5000.0,5.005e-05,2]
[423003200,1779740078000,5000.0,5.005e-05,2]
[423003201,1779740100000,5000.0,5.005e-05,2]
[423003204,1779740122000,5000.0,5.005e-05,2]
[423003205,1779740144000,5000.0,5.005e-05,2]
[423003208,1779740166000,2085.0531875,5.005e-05,2]
[423003289,1779741032000,-500.0,5.058e-05,2]
[423003277,1779741032000,-300.0,5.057e-05,2]
[423003279,1779741032000,-300.0,5.057e-05,2]
[423003283,1779741032000,-500.0,5.058e-05,2]
[423003281,1779741032000,-1200.0,5.057e-05,2]
[423003285,1779741032000,-500.0,5.058e-05,2]
[423003286,1779741032000,-500.0,5.058e-05,2]
[423003274,1779741032000,-300.0,5.057e-05,2]
[423003287,1779741032000,-500.0,5.058e-05,2]
[423003290,1779741032000,-558.8423791,5.058e-05,2]
[423003299,1779741032000,-500.0,5.058e-05,2]
[423003292,1779741032000,-500.0,5.058e-05,2]
[423003301,1779741032000,-500.0,5.058e-05,2]
[423003303,1779741032000,-500.0,5.058e-05,2]
[423003306,1779741032000,-483.6094447,5.058e-05,2]
[423003293,1779741032000,-500.0,5.058e-05,2]
[423003294,1779741032000,-500.0,5.058e-05,2]
[423003297,1779741032000,-500.0,5.058e-05,2]
[423003295,1779741032000,-500.0,5.058e-05,2]
[423003288,1779741032000,-500.0,5.058e-05,2]
[423003331,1779741033000,-500.0,5.058e-05,2]
[423003333,1779741033000,-360.39010411,5.058e-05,2]
[423003337,1779741033000,-500.0,5.058e-05,2]
[423003342,1779741033000,-500.0,5.058e-05,2]
[423003339,1779741033000,-500.0,5.058e-05,2]
[423003344,1779741033000,-500.0,5.058e-05,2]
[423003332,1779741033000,-500.0,5.058e-05,2]
[423003338,1779741033000,-500.0,5.058e-05,2]
[423003330,1779741033000,-339.69413587,5.058e-05,2]
[423003311,1779741033000,-500.0,5.058e-05,2]
[423003319,1779741033000,-500.0,5.058e-05,2]
[423003315,1779741033000,-500.0,5.058e-05,2]
[423003313,1779741033000,-477.62946975,5.058e-05,2]
[423003327,1779741033000,-500.0,5.058e-05,2]
[423003323,1779741033000,-431.1988376,5.058e-05,2]
[423003325,1779741033000,-500.0,5.058e-05,2]
[423003309,1779741033000,-500.0,5.058e-05,2]
[423003321,1779741033000,-500.0,5.058e-05,2]
[423003329,1779741033000,-500.0,5.058e-05,2]
[423003341,1779741033000,-500.0,5.058e-05,2]
[423003345,1779741033000,-500.0,5.058e-05,2]
[423003340,1779741033000,-500.0,5.058e-05,2]
[423003343,1779741033000,-500.0,5.058e-05,2]
[423003359,1779741033000,-300.0,5.167e-05,2]
[423003361,1779741033000,-264.27385289,5.167e-05,2]
[423003360,1779741033000,-300.0,5.167e-05,2]
[423003353,1779741033000,-500.0,5.058e-05,2]
[423003355,1779741033000,-500.0,5.058e-05,2]
[423003356,1779741033000,-500.0,5.058e-05,2]
[423003348,1779741033000,-500.0,5.058e-05,2]
[423003352,1779741033000,-553.5243614,5.058e-05,2]
[423003354,1779741033000,-500.0,5.058e-05,2]
[423003350,1779741033000,-500.0,5.058e-05,2]
[423003349,1779741033000,-500.0,5.058e-05,2]
[423003346,1779741033000,-500.0,5.058e-05,2]
[423003358,1779741033000,-446.43531458,5.059e-05,2]
[423003347,1779741033000,-500.0,5.058e-05,2]
[423003357,1779741033000,-500.0,5.058e-05,2]
[423003335,1779741033000,-500.0,5.058e-05,2]
[423003334,1779741033000,-500.0,5.058e-05,2]
[423003336,1779741033000,-500.0,5.058e-05,2]
[423003351,1779741033000,-500.0,5.058e-05,2]
[423003409,1779741039000,-720.0,5.684e-05,2]
[423003410,1779741039000,-160.7600372,5.954e-05,2]
[423003414,1779741039000,-1000.0,7.565e-05,2]
[423003411,1779741039000,-864.0,6.252e-05,2]
[423003408,1779741039000,-326.41176082,5.479e-05,2]
[423003405,1779741039000,-600.0,5.167e-05,2]
[423003404,1779741039000,-300.0,5.167e-05,2]
[423003416,1779741039000,-192562.81038763,7.6e-05,2]
[423003415,1779741039000,-244.0,7.565e-05,2]
[423003413,1779741039000,-526.7936712,7.059e-05,2]
[423003406,1779741039000,-500.0,5.479e-05,2]
[423003412,1779741039000,-1000.0,6.878e-05,2]
[423003426,1779741039000,-500.0,8.219e-05,2]
[423003417,1779741039000,-85001.10514107,7.942e-05,2]
[423003421,1779741039000,-160.0,8.136e-05,2]
[423003420,1779741039000,-210.1038652,8.042e-05,2]
[423003423,1779741039000,-160.0,8.136e-05,2]
[423003422,1779741039000,-160.0,8.136e-05,2]
[423003418,1779741039000,-1306650.72555555,7.942e-05,2]
[423003425,1779741039000,-500.0,8.219e-05,2]
[423003424,1779741039000,-624.91,8.219e-05,2]
[423003403,1779741039000,-300.0,5.167e-05,2]
[423003427,1779741039000,-2154.44,8.219e-05,2]
[423003429,1779741039000,-2154.44,8.219e-05,2]
[423003419,1779741039000,-24786.9496457,8.042e-05,2]
[423003401,1779741039000,-300.0,5.167e-05,2]
[423003392,1779741039000,-35.72614711,5.167e-05,2]
[423003398,1779741039000,-300.0,5.167e-05,2]
[423003376,1779741039000,-525.53301509,5.057e-05,2]
[423003378,1779741039000,-525.53301509,5.057e-05,2]
[423003377,1779741039000,-525.53301509,5.057e-05,2]
[423003381,1779741039000,-525.53301509,5.057e-05,2]
[423003380,1779741039000,-525.53301509,5.057e-05,2]
[423003379,1779741039000,-525.53301509,5.057e-05,2]
[423003390,1779741039000,-525.53301509,5.057e-05,2]
[423003384,1779741039000,-525.53301509,5.057e-05,2]
[423003385,1779741039000,-525.53301509,5.057e-05,2]
[423003382,1779741039000,-525.53301509,5.057e-05,2]
[423003383,1779741039000,-525.53301509,5.057e-05,2]
[423003397,1779741039000,-300.0,5.167e-05,2]
[423003391,1779741039000,-525.53301509,5.057e-05,2]
[423003389,1779741039000,-525.53301509,5.057e-05,2]
[423003387,1779741039000,-525.53301509,5.057e-05,2]
[423003386,1779741039000,-525.53301509,5.057e-05,2]
[423003428,1779741039000,-2154.44,8.219e-05,2]
[423003394,1779741039000,-300.0,5.167e-05,2]
[423003400,1779741039000,-300.0,5.167e-05,2]
[423003393,1779741039000,-300.0,5.167e-05,2]
[423003395,1779741039000,-300.0,5.167e-05,2]
[423003399,1779741039000,-300.0,5.167e-05,2]
[423003396,1779741039000,-300.0,5.167e-05,2]
[423003402,1779741039000,-300.0,5.167e-05,2]
[423003388,1779741039000,-525.53301509,5.057e-05,2]
[423003430,1779741039000,-2154.44,8.219e-05,2]
[423003407,1779741039000,-500.0,5.479e-05,2]
[423003431,1779741039000,-2154.44,8.219e-05,2]
[423003456,1779741039000,-778.69,8.219e-05,2]
[423003459,1779741039000,-500.0,8.219e-05,2]
[423003458,1779741039000,-500.0,8.219e-05,2]
[423003460,1779741039000,-1068.32,8.219e-05,2]
[423003461,1779741039000,-500.0,8.219e-05,2]
[423003464,1779741039000,-541.46,8.219e-05,2]
[423003462,1779741039000,-500.0,8.219e-05,2]
[423003463,1779741039000,-500.0,8.219e-05,2]
[423003469,1779741039000,-438.85846126,8.219e-05,2]
[423003471,1779741039000,-1459.56,8.219e-05,2]
[423003472,1779741039000,-500.0,8.219e-05,2]
[423003473,1779741039000,-660.54,8.219e-05,2]
[423003485,1779741039000,-500.0,8.219e-05,2]
[423003474,1779741039000,-500.0,8.219e-05,2]
[423003476,1779741039000,-500.0,8.219e-05,2]
[423003475,1779741039000,-500.0,8.219e-05,2]
[423003478,1779741039000,-500.0,8.219e-05,2]
[423003479,1779741039000,-500.0,8.219e-05,2]
[423003480,1779741039000,-1651.32,8.219e-05,2]
[423003477,1779741039000,-500.0,8.219e-05,2]
[423003481,1779741039000,-500.0,8.219e-05,2]
[423003484,1779741039000,-500.0,8.219e-05,2]
[423003483,1779741039000,-500.0,8.219e-05,2]
[423003482,1779741039000,-500.0,8.219e-05,2]
[423003433,1779741039000,-2154.44,8.219e-05,2]
[423003468,1779741039000,-500.0,8.219e-05,2]
[423003467,1779741039000,-500.0,8.219e-05,2]
[423003470,1779741039000,-773.44,8.219e-05,2]
[423003465,1779741039000,-500.0,8.219e-05,2]
[423003435,1779741039000,-2154.44,8.219e-05,2]
[423003466,1779741039000,-613.7,8.219e-05,2]
[423003434,1779741039000,-2154.44,8.219e-05,2]
[423003432,1779741039000,-2154.44,8.219e-05,2]
[423003441,1779741039000,-2154.44,8.219e-05,2]
[423003436,1779741039000,-2154.44,8.219e-05,2]
[423003437,1779741039000,-2154.44,8.219e-05,2]
[423003438,1779741039000,-2154.44,8.219e-05,2]
[423003440,1779741039000,-2154.44,8.219e-05,2]
[423003443,1779741039000,-2154.44,8.219e-05,2]
[423003442,1779741039000,-2154.44,8.219e-05,2]
[423003454,1779741039000,-500.0,8.219e-05,2]
[423003439,1779741039000,-2154.44,8.219e-05,2]
[423003452,1779741039000,-500.0,8.219e-05,2]
[423003457,1779741039000,-500.0,8.219e-05,2]
[423003448,1779741039000,-2154.44,8.219e-05,2]
[423003444,1779741039000,-2154.44,8.219e-05,2]
[423003446,1779741039000,-2154.44,8.219e-05,2]
[423003447,1779741039000,-2154.44,8.219e-05,2]
[423003453,1779741039000,-500.0,8.219e-05,2]
[423003449,1779741039000,-2154.44,8.219e-05,2]
[423003451,1779741039000,-500.0,8.219e-05,2]
[423003455,1779741039000,-500.0,8.219e-05,2]
[423003445,1779741039000,-2154.44,8.219e-05,2]
[423003450,1779741039000,-2154.66444177,8.219e-05,2]
[423003519,1779741040000,-2548.57,8.219e-05,2]
[423003527,1779741040000,-981.13,8.219e-05,2]
[423003521,1779741040000,-500.0,8.219e-05,2]
[423003522,1779741040000,-500.0,8.219e-05,2]
[423003524,1779741040000,-579.88,8.219e-05,2]
[423003529,1779741040000,-1027.48,8.219e-05,2]
[423003528,1779741040000,-2238.12,8.219e-05,2]
[423003530,1779741040000,-1638.68,8.219e-05,2]
[423003523,1779741040000,-4007.39,8.219e-05,2]
[423003518,1779741040000,-532.6,8.219e-05,2]
[423003517,1779741040000,-4030.62,8.219e-05,2]
[423003526,1779741040000,-500.0,8.219e-05,2]
[423003525,1779741040000,-500.0,8.219e-05,2]
[423003532,1779741040000,-500.0,8.219e-05,2]
[423003535,1779741040000,-500.0,8.219e-05,2]
[423003541,1779741040000,-1684.74,8.219e-05,2]
[423003531,1779741040000,-500.0,8.219e-05,2]
[423003543,1779741040000,-500.0,8.219e-05,2]
[423003533,1779741040000,-637.75,8.219e-05,2]
[423003534,1779741040000,-500.0,8.219e-05,2]
[423003539,1779741040000,-5260.2,8.219e-05,2]
[423003536,1779741040000,-500.0,8.219e-05,2]
[423003538,1779741040000,-500.0,8.219e-05,2]
[423003540,1779741040000,-562.04,8.219e-05,2]
[423003537,1779741040000,-1613.61,8.219e-05,2]
[423003548,1779741040000,-1354.69,8.219e-05,2]
[423003547,1779741040000,-3816.88,8.219e-05,2]
[423003544,1779741040000,-1585.73,8.219e-05,2]
[423003542,1779741040000,-1014.99,8.219e-05,2]
[423003513,1779741040000,-500.0,8.219e-05,2]
[423003489,1779741040000,-1158.05,8.219e-05,2]
[423003512,1779741040000,-500.0,8.219e-05,2]
[423003545,1779741040000,-500.0,8.219e-05,2]
[423003491,1779741040000,-500.0,8.219e-05,2]
[423003488,1779741040000,-500.0,8.219e-05,2]
[423003486,1779741040000,-500.0,8.219e-05,2]
[423003490,1779741040000,-500.0,8.219e-05,2]
[423003487,1779741040000,-800.66,8.219e-05,2]
[423003493,1779741040000,-1247.83,8.219e-05,2]
[423003492,1779741040000,-732.77,8.219e-05,2]
[423003494,1779741040000,-500.0,8.219e-05,2]
[423003495,1779741040000,-500.0,8.219e-05,2]
[423003502,1779741040000,-500.0,8.219e-05,2]
[423003496,1779741040000,-500.0,8.219e-05,2]
[423003499,1779741040000,-500.0,8.219e-05,2]
[423003514,1779741040000,-500.0,8.219e-05,2]
[423003503,1779741040000,-500.0,8.219e-05,2]
[423003497,1779741040000,-500.0,8.219e-05,2]
[423003501,1779741040000,-1011.82,8.219e-05,2]
[423003498,1779741040000,-500.0,8.219e-05,2]
[423003505,1779741040000,-500.0,8.219e-05,2]
[423003516,1779741040000,-954.23,8.219e-05,2]
[423003504,1779741040000,-500.0,8.219e-05,2]
[423003515,1779741040000,-1600.49,8.219e-05,2]
[423003506,1779741040000,-500.0,8.219e-05,2]
[423003508,1779741040000,-500.0,8.219e-05,2]
[423003510,1779741040000,-500.0,8.219e-05,2]
[423003507,1779741040000,-809.26,8.219e-05,2]
[423003509,1779741040000,-500.0,8.219e-05,2]
[423003511,1779741040000,-773.67,8.219e-05,2]
[423003500,1779741040000,-517.03,8.219e-05,2]
[423003546,1779741040000,-2140.42,8.219e-05,2]
[423003591,1779741040000,-624.91,8.493e-05,2]
[423003550,1779741040000,-1862.43,8.219e-05,2]
[423003592,1779741040000,-500.0,8.493e-05,2]
[423003595,1779741040000,-500.0,8.493e-05,2]
[423003594,1779741040000,-500.0,8.493e-05,2]
[423003585,1779741040000,-1000.0,8.322e-05,2]
[423003586,1779741040000,-492.0,8.322e-05,2]
[423003583,1779741040000,-603.3802572,8.219e-05,2]
[423003587,1779741040000,-1165.48258883,8.457e-05,2]
[423003588,1779741040000,-1165.48258883,8.457e-05,2]
[423003590,1779741040000,-2192.6329,8.493e-05,2]